bitfinex/quotes_ETHUSD_20240823
["timestamp","ask_amount","ask_price","bid_price","bid_amount"]
[1724406468844,3.74611,2669.5,2669.3,0.005]
[1724406469394,13.13635472,2669.7,2669.3,0.005]
[1724406469732,6.7459,2669.6,2669.3,0.005]
[1724406469931,3.74605,2669.5,2669.3,0.005]
[1724406470105,6.39084472,2669.4,2669.3,0.005]
[1724406470935,10.21977044,2669.4,2669.3,0.005]
[1724406471122,6.47361044,2669.4,2669.3,0.005]
[1724406471996,6.39168472,2668.8,2668.7,20.35775344]
[1724406472334,3.65853919,2668.8,2668.7,20.35775344]
[1724406472505,2.64468472,2669.0,2668.7,20.35775344]
[1724406472898,6.39111472,2669.3,2668.7,20.35775344]
[1724406473230,2.64468472,2669.0,2668.7,20.35775344]
[1724406473426,4.95048472,2669.6,2668.8,2.03577534]
[1724406473638,3.0,2669.5,2668.8,2.03577534]
[1724406474312,2.64468472,2669.6,2668.8,2.03577534]
[1724406474508,2.64468472,2669.6,2668.9,2.4734]
[1724406474713,2.64468472,2669.6,2669.0,0.45091753]
[1724406476634,6.39057472,2669.6,2669.0,0.45091753]
[1724406477142,2.64468472,2669.6,2669.0,0.45091753]
[1724406477358,2.64468472,2669.9,2669.0,0.45091753]
[1724406479350,6.39017472,2669.9,2669.0,14.76286255]
[1724406479518,6.39017472,2669.9,2669.1,1.72362625]
[1724406480140,3.74562,2669.8,2669.1,1.72362625]
[1724406480332,2.72745044,2669.9,2669.1,1.72362625]
[1724406480541,2.64468472,2669.9,2669.1,1.72362625]
[1724406480727,5.3773,2670.2,2669.1,1.72362625]
[1724406480728,11.76703472,2670.2,2669.1,1.72362625]
[1724406480928,3.0,2670.1,2669.2,2.02330788]
[1724406481239,8.76702472,2670.2,2669.2,2.02330788]
[1724406481620,5.02198472,2670.2,2669.2,2.02330788]
[1724406481824,4.83554847,2670.8,2669.3,6.20946]
[1724406481825,8.79576472,2670.5,2669.3,6.20946]
[1724406482092,8.79576472,2670.5,2668.7,20.35775344]
[1724406482093,0.58749795,2670.7,2669.6,6.20907]
[1724406482291,5.05108472,2670.8,2669.6,6.20907]
[1724406482626,5.05108472,2670.8,2669.8,3.74546]
[1724406482627,2.64468472,2670.8,2669.8,3.74546]
[1724406482824,8.79487472,2671.1,2669.9,2.4522]
[1724406483073,6.73805625,2671.1,2670.0,0.619766]
[1724406483283,4.33165625,2671.1,2670.1,2.4522]
[1724406483463,2.64468472,2671.1,2670.2,0.07488453]
[1724406483779,6.38848472,2671.1,2670.1,2.4522]
[1724406484827,2.64468472,2671.1,2670.1,2.4522]
[1724406485186,2.64468472,2671.1,2670.2,3.74502]
[1724406485697,6.38806472,2671.4,2670.2,3.74494]
[1724406485824,6.38806472,2671.4,2670.3,0.919714]
[1724406486393,3.7435,2671.3,2670.3,0.919714]
[1724406486547,6.38806472,2671.4,2670.1,3.0]
[1724406486548,6.38806472,2671.4,2670.4,2.3466]
[1724406487165,2.64468472,2671.4,2670.4,2.3466]
[1724406487547,6.38805472,2671.4,2670.4,2.3466]
[1724406488045,2.64468472,2671.4,2670.4,2.3466]
[1724406488256,2.64468472,2671.4,2670.5,0.07487046]
[1724406488452,6.38769472,2671.7,2670.7,2.3435]
[1724406488649,2.64468472,2671.7,2670.7,2.3435]
[1724406489694,2.64468472,2671.7,2670.7,6.08775]
[1724406489832,8.75617472,2672.0,2670.7,6.08775]
[1724406490035,3.74274,2671.9,2670.7,6.08775]
[1724406490235,4.99263147,2671.9,2670.8,0.70788281]
[1724406490460,1.24989147,2671.9,2670.8,0.70788281]
[1724406490685,3.74259,2672.0,2670.9,2.2826]
[1724406490888,2.64468472,2672.1,2670.9,5.2826]
[1724406491103,6.38705472,2672.1,2670.9,9.02663]
[1724406491634,2.64468472,2672.1,2671.0,3.74391]
[1724406491831,3.28338719,2672.1,2671.1,0.902651]
[1724406492031,2.64468472,2672.4,2671.3,3.74348]
[1724406492231,2.64468472,2672.4,2671.4,2.3339]
[1724406495250,2.64468472,2672.4,2671.5,3.7432]
[1724406495706,2.64468472,2672.4,2671.4,2.3339]
[1724406496756,10.12876472,2672.4,2671.4,2.3339]
[1724406496949,6.38672472,2672.4,2671.5,0.53339]
[1724406497185,10.12875472,2672.4,2671.5,0.53339]
[1724406497705,6.38671472,2672.4,2671.5,0.53339]
[1724406497908,3.74211,2672.3,2671.5,0.53339]
[1724406498546,10.12876472,2672.4,2671.5,0.53339]
[1724406498919,3.74221,2672.3,2671.6,0.286729]
[1724406499326,10.12879472,2672.4,2671.6,0.286729]
[1724406499614,6.38671472,2672.4,2671.6,0.286729]
[1724406499815,2.64468472,2672.4,2671.6,0.286729]
[1724406500531,6.38671472,2672.4,2671.6,0.286729]
[1724406500732,3.74217,2672.3,2671.6,0.286729]
[1724406500873,7.09239692,2672.4,2671.6,0.286729]
[1724406501475,10.83442692,2672.4,2671.6,0.286729]
[1724406501993,10.83444692,2672.4,2671.6,0.286729]
[1724406502394,4.4477122,2672.4,2671.6,0.286729]
[1724406502659,7.09239692,2672.4,2671.6,0.286729]
[1724406502930,3.35036692,2672.4,2671.6,0.286729]
[1724406503232,3.7421,2672.3,2671.6,0.286729]
[1724406503533,3.35036692,2672.4,2671.6,0.286729]
[1724406503534,6.38663472,2672.4,2671.6,0.286729]
[1724406505536,2.64468472,2672.4,2671.6,0.286729]
[1724406508981,7.45819535,2672.4,2671.6,0.286729]
[1724406509183,2.64468472,2672.1,2671.4,2.3339]
[1724406509498,6.38712472,2672.1,2671.4,2.3339]
[1724406510416,2.64468472,2672.1,2671.4,2.3339]
[1724406510941,2.64468472,2672.1,2671.0,3.74381]
[1724406510942,2.64468472,2671.8,2671.1,2.3979]
[1724406511925,6.99828529,2672.1,2671.1,2.3979]
[1724406512305,3.25589529,2672.1,2671.1,2.3979]
[1724406512750,2.64468472,2672.1,2671.1,6.14166]
[1724406512951,2.64468472,2672.1,2671.1,6.14159]
[1724406513150,2.64468472,2672.1,2671.1,2.3979]
[1724406513653,3.74253,2672.0,2671.1,2.3979]
[1724406513858,6.38718472,2672.1,2671.1,2.3979]
[1724406514168,7.62882819,2672.1,2671.2,0.98079]
[1724406515072,5.64468472,2672.4,2671.3,2.3157]
[1724406515226,2.64468472,2672.4,2671.5,2.3157]
[1724406515553,6.38634472,2672.7,2671.5,6.0588]
[1724406515753,6.38634472,2672.7,2671.6,6.1544605]
[1724406515754,3.0,2672.6,2671.6,6.1544605]
[1724406516336,3.74133,2672.9,2671.8,2.3787]
[1724406516540,7.48269,2672.9,2671.8,2.3787]
[1724406516702,3.74133,2672.9,2671.8,2.3787]
[1724406516902,7.48268,2672.9,2671.8,2.3787]
[1724406517220,3.74133,2672.9,2671.9,1.6690645]
[1724406517625,3.74133,2672.9,2672.0,2.3787]
[1724406520243,3.74143,2672.8,2672.0,2.3787]
[1724406520965,2.64468472,2672.7,2672.0,2.3787]
[1724406521172,6.46901044,2672.7,2672.0,2.3787]
[1724406521379,6.46901044,2672.7,2672.0,4.95567095]
[1724406521521,3.74183,2672.5,2672.0,4.95567095]
[1724406522147,6.46901044,2672.7,2672.0,4.95567095]
[1724406522148,10.21066044,2672.7,2672.0,4.95567095]
[1724406522353,3.74168,2672.6,2672.0,4.95567095]
[1724406522568,6.38624472,2672.7,2672.0,4.95567095]
[1724406522770,6.38624472,2672.7,2672.1,2.83466805]
[1724406523775,2.64468472,2672.7,2672.1,2.83466805]
[1724406523950,2.64468472,2673.0,2672.1,2.83466805]
[1724406524133,6.74129,2672.9,2672.1,2.83466805]
[1724406524354,6.74129,2672.9,2672.2,1.95253131]
[1724406524936,3.74141,2672.8,2672.2,1.95253131]
[1724406525239,6.38591472,2673.0,2672.2,1.95253131]
[1724406525734,2.64468472,2673.0,2672.2,1.95253131]
[1724406525931,2.64468472,2673.0,2672.4,2.3787]
[1724406527032,6.38581472,2673.0,2672.4,2.3787]
[1724406527235,2.64468472,2673.0,2672.4,2.3787]
[1724406529319,2.3093,2672.9,2672.3,0.19525313]
[1724406529464,6.05057,2672.9,2672.3,2.56985313]
[1724406529660,3.74127,2672.9,2672.4,0.45223844]
[1724406530610,2.64468472,2673.0,2672.4,0.45223844]
[1724406531678,6.38581472,2673.0,2672.4,0.45223844]
[1724406533018,2.64468472,2673.0,2672.4,0.45223844]
[1724406533219,2.64468472,2673.0,2672.5,0.30220916]
[1724406537434,6.38579472,2673.0,2672.5,0.30220916]
[1724406537776,2.64468472,2673.0,2672.5,0.30220916]
[1724406538155,6.38587472,2673.0,2672.3,2.3746]
[1724406538449,2.64468472,2673.0,2672.3,2.3746]
[1724406538821,6.38588472,2673.0,2672.3,2.3746]
[1724406540244,3.74149,2672.8,2672.0,2.3158]
[1724406540399,2.64468472,2672.7,2672.0,2.3158]
[1724406540597,3.74282,2671.8,2671.2,2.90149065]
[1724406540817,2.64468472,2671.8,2671.2,2.3158]
[1724406541019,2.64468472,2671.8,2671.3,0.23158]
[1724406541384,2.64468472,2671.5,2670.8,2.333]
[1724406544518,6.38798472,2671.5,2670.8,2.333]
[1724406544720,3.74337,2671.4,2670.8,2.333]
[1724406545034,6.38841472,2671.2,2670.7,50.0]
[1724406545636,6.38796472,2671.5,2670.7,53.74146478]
[1724406545834,2.64468472,2671.5,2670.7,56.08846478]
[1724406547627,2.64468472,2671.8,2670.8,3.74418]
[1724406548646,2.64468472,2671.8,2670.7,56.08846478]
[1724406548792,2.64468472,2671.8,2670.8,3.74146478]
[1724406550149,2.64468472,2671.8,2670.8,7.48557478]
[1724406550466,2.64468472,2671.8,2670.9,2.3512]
[1724406551783,3.74265,2671.9,2670.9,2.3512]
[1724406551942,2.64468472,2671.7,2670.9,2.3512]
[1724406552148,2.64468472,2671.7,2671.0,0.60926648]
[1724406553262,5.3521,2672.0,2671.0,0.60926648]
[1724406553263,7.99678472,2672.0,2671.0,0.60926648]
[1724406553689,4.99678472,2672.0,2671.0,0.60926648]
[1724406554293,8.75017472,2672.3,2671.2,2.2988]
[1724406554516,8.75017472,2672.3,2671.3,3.74349]
[1724406554517,5.00798472,2672.3,2671.3,3.74349]
[1724406554721,3.74188,2672.5,2671.5,2.2988]
[1724406554722,7.48378,2672.5,2671.5,2.2988]
[1724406554921,7.48382,2672.5,2671.5,2.2988]
[1724406555105,3.74188,2672.5,2671.5,2.2988]
[1724406555325,7.48377,2672.5,2671.5,2.2988]
[1724406555705,3.74188,2672.5,2671.5,2.2988]
[1724406555937,3.74188,2672.5,2671.6,0.2903029]
[1724406556494,7.48377,2672.5,2671.6,0.2903029]
[1724406556694,3.74188,2672.5,2671.6,0.2903029]
[1724406556893,7.48379,2672.5,2671.6,0.2903029]
[1724406557299,3.74195,2672.4,2671.6,0.2903029]
[1724406557639,7.48379,2672.5,2671.7,0.25891029]
[1724406558236,3.74188,2672.5,2671.7,0.25891029]
[1724406561029,8.74967472,2672.6,2671.7,0.25891029]
[1724406561913,3.74181,2672.5,2671.7,0.25891029]
[1724406562546,5.00798472,2672.6,2671.7,0.25891029]
[1724406562747,2.64468472,2672.6,2671.7,0.25891029]
[1724406562959,3.0,2672.8,2671.8,2.78439103]
[1724406563167,6.74147,2672.8,2671.8,2.78439103]
[1724406563453,3.0,2672.8,2671.8,2.78439103]
[1724406563599,3.0,2672.8,2671.8,6.52715103]
[1724406563798,3.0,2672.8,2671.9,0.67860613]
[1724406564210,2.64468472,2672.6,2671.9,0.67860613]
[1724406564415,3.74186,2672.5,2671.8,2.78439103]
[1724406566643,6.38643472,2672.6,2671.8,2.78439103]
[1724406566853,2.64468472,2672.6,2671.8,2.78439103]
[1724406567089,6.74149,2672.8,2671.8,2.78439103]
[1724406567235,3.74157,2672.7,2671.9,0.2784391]
[1724406567978,3.74211,2672.3,2671.9,0.2784391]
[1724406568177,3.74211,2672.3,2671.5,2.33]
[1724406568538,2.4255,2672.4,2671.5,2.33]
[1724406569139,3.74185,2672.5,2671.5,2.33]
[1724406570530,2.72745044,2672.6,2671.5,2.33]
[1724406570798,6.46924044,2672.6,2671.6,0.607326]
[1724406570941,3.74181,2672.5,2671.6,0.607326]
[1724406572457,6.46912044,2672.6,2671.6,0.607326]
[1724406572786,2.64468472,2672.3,2671.6,0.607326]
[1724406572985,2.64468472,2672.3,2671.3,3.0]
[1724406573200,2.64468472,2672.3,2671.2,5.2753]
[1724406573343,6.38679472,2672.3,2671.2,9.01885]
[1724406574300,2.64468472,2672.3,2671.2,5.2753]
[1724406574522,2.64468472,2672.3,2671.3,9.9046]
[1724406574677,2.64468472,2672.3,2671.4,0.99046]
[1724406574878,2.64468472,2672.3,2671.4,3.99046]
[1724406575186,2.64468472,2672.3,2671.4,7.73381]
[1724406575698,2.64468472,2672.3,2671.5,2.3921]
[1724406576360,2.64468472,2672.6,2671.6,3.74305]
[1724406576558,2.64468472,2672.6,2671.7,0.613515]
[1724406576559,6.38638472,2672.6,2671.7,0.613515]
[1724406583565,2.3261,2672.5,2671.7,0.613515]
[1724406584007,6.15068572,2672.5,2671.7,0.613515]
[1724406584185,3.74203,2672.4,2671.5,2.3921]
[1724406584387,3.82479572,2672.4,2671.5,2.3921]
[1724406586956,3.74203,2672.4,2671.5,2.3921]
[1724406587659,2.3033,2672.3,2671.4,3.99046]
[1724406587969,2.3033,2672.3,2671.5,1.010038]
[1724406588575,5.03075044,2672.3,2671.5,1.010038]
[1724406589109,3.74226,2672.2,2671.5,1.010038]
[1724406589538,4.32930554,2672.2,2671.5,1.010038]
[1724406589661,0.58704554,2672.2,2671.5,1.010038]
[1724406590198,2.4327,2672.1,2671.4,3.0]
[1724406590404,2.4327,2672.1,2671.3,6.74347]
[1724406590704,2.4327,2672.5,2671.3,3.0]
[1724406590914,2.4327,2672.5,2671.5,3.7431]
[1724406591059,2.4327,2672.5,2671.6,2.448]
[1724406591255,2.4327,2672.5,2671.7,0.619109]
[1724406592895,2.4327,2672.5,2671.7,4.362029]
[1724406593687,2.4327,2672.5,2671.7,8.104879]
[1724406593901,2.4327,2672.5,2671.7,4.361959]
[1724406595711,2.4327,2672.5,2671.7,0.619109]
[1724406595885,2.4327,2672.5,2671.8,0.6810129]
[1724406598523,1.10316866,2672.1,2671.8,0.6810129]
[1724406598719,1.10316866,2672.1,2671.7,0.619109]
[1724406601059,1.10316866,2672.1,2671.6,2.448]
[1724406604655,1.10316866,2672.1,2671.6,6.19106]
[1724406605010,1.10316866,2672.1,2671.6,9.93412]
[1724406605211,1.10316866,2672.1,2671.6,6.19106]
[1724406606551,1.10316866,2672.1,2671.6,3.74306]
[1724406606764,1.10316866,2672.1,2671.7,0.374306]
[1724406609967,3.57916866,2672.1,2671.7,0.374306]
[1724406610110,1.10316866,2671.8,2671.7,0.374306]
[1724406610475,1.10316866,2671.8,2671.2,6.74355]
[1724406610476,2.476,2671.7,2671.2,3.0]
[1724406610674,2.476,2671.7,2671.1,3.0]
[1724406611167,1.10316866,2671.6,2670.8,3.74408]
[1724406611475,1.10316866,2671.6,2670.9,8.78752722]
[1724406611671,1.10316866,2671.6,2670.9,7.83699204]
[1724406611812,1.10316866,2671.6,2670.9,7.48551478]
[1724406612474,1.10316866,2671.6,2671.0,3.0]
[1724406612693,1.10316866,2671.4,2671.1,1.04855148]
[1724406613283,1.10316866,2671.6,2671.1,1.04855148]
[1724406613488,2.476,2671.5,2671.1,1.04855148]
[1724406614756,1.10316866,2671.4,2671.1,1.04855148]
[1724406615137,2.476,2671.5,2671.1,1.04855148]
[1724406615433,2.476,2671.5,2671.2,0.77924615]
[1724406617901,1.10316866,2671.4,2671.2,0.77924615]
[1724406618789,2.476,2671.5,2671.2,0.77924615]
[1724406619711,3.74197,2672.4,2671.2,0.77924615]
[1724406619712,1.10316866,2671.9,2671.5,3.74319]
[1724406619907,1.10316866,2671.9,2671.5,4.491858]
[1724406621143,1.10316866,2671.9,2671.5,4.491788]
[1724406622545,1.10316866,2671.9,2671.5,8.234908]
[1724406622759,2.4414,2672.5,2671.5,4.491788]
[1724406623046,1.10316866,2672.4,2671.7,7.48568]
[1724406623197,1.10316866,2672.4,2671.7,3.74282]
[1724406623414,1.10316866,2672.4,2671.8,4.29275]
[1724406624244,1.10316866,2672.0,2671.6,3.6820888]
[1724406624441,1.10316866,2672.0,2671.4,3.0]
[1724406626250,1.10316866,2672.0,2671.4,6.74333]
[1724406627524,1.10316866,2672.0,2671.4,3.0]
[1724406628314,3.43266866,2671.6,2671.2,1.13067486]
[1724406628662,3.43266866,2671.6,2671.3,0.59228863]
[1724406628663,2.3295,2671.6,2671.3,0.59228863]
[1724406631077,3.43266866,2671.6,2671.2,3.35142871]
[1724406631215,3.43266866,2671.6,2671.2,0.35142871]
[1724406632462,3.43266866,2671.6,2671.3,0.07549685]
[1724406632971,3.43266866,2671.6,2671.4,0.07541282]
[1724406633464,3.43266866,2671.6,2671.2,0.35142871]
[1724406633773,2.3374,2671.1,2670.7,50.0]
[1724406633914,2.4953,2671.3,2670.7,50.0]
[1724406634115,2.4953,2670.8,2670.7,50.0]
[1724406634322,3.59846866,2670.8,2670.7,50.0]
[1724406636448,2.4953,2670.8,2670.7,50.0]
[1724406641458,2.4953,2670.8,2670.7,50.06184294]
[1724406645083,3.74352,2671.3,2670.7,50.06184294]
[1724406645084,2.4455,2671.3,2670.7,50.06184294]
[1724406645291,2.4455,2671.3,2670.7,53.80330772]
[1724406645602,2.4455,2671.3,2670.7,57.54762772]
[1724406646561,2.4455,2671.3,2670.7,53.80330772]
[1724406646853,2.4455,2671.3,2670.8,3.74146478]
[1724406647293,2.4455,2671.3,2670.9,0.0622061]
[1724406648695,2.3074,2671.7,2670.9,0.0622061]
[1724406649200,2.39016572,2671.7,2670.9,0.0622061]
[1724406649364,2.39016572,2671.7,2670.9,1.8779626]
[1724406649755,2.3074,2671.7,2670.9,1.8779626]
[1724406650046,2.3074,2671.5,2670.9,0.0622061]
[1724406650442,2.3074,2671.5,2670.7,50.017159]
[1724406650601,2.3074,2671.5,2671.0,0.06200286]
[1724406650801,2.4639,2671.3,2670.7,50.017159]
[1724406651061,2.4639,2671.3,2671.1,0.06192875]
[1724406651267,3.34969869,2671.3,2670.7,50.017159]
[1724406651649,3.34969869,2671.3,2670.8,0.06210144]
[1724406652169,3.34969869,2671.3,2670.9,0.06202732]
[1724406652575,3.34969869,2671.3,2670.7,50.017159]
[1724406653066,3.34969869,2671.3,2670.8,0.06210144]
[1724406653453,3.34969869,2671.3,2670.7,50.017159]
[1724406653655,3.34969869,2671.3,2670.9,0.06176065]
[1724406653838,3.34969869,2671.3,2670.8,0.06183477]
[1724406654036,3.34969869,2671.3,2671.0,0.06168654]
[1724406654237,3.34969869,2671.3,2670.9,0.06176065]
[1724406654453,3.01434056,2671.2,2671.1,0.06161243]
[1724406654661,2.2671,2671.1,2671.0,0.06168654]
[1724406654821,2.2671,2671.1,2670.7,50.017159]
[1724406655223,2.34986572,2671.1,2670.7,50.017159]
[1724406656236,6.09366572,2671.1,2670.7,50.017159]
[1724406656442,4.91780694,2670.8,2670.7,50.017159]
[1724406656672,5.00057266,2670.8,2670.7,50.017159]
[1724406658018,8.66199694,2670.8,2670.7,50.017159]
[1724406660253,4.91780694,2670.8,2670.7,50.07927649]
[1724406661374,6.15839463,2670.8,2670.7,50.07927649]
[1724406661579,9.90258463,2670.8,2670.7,50.07927649]
[1724406664687,13.64677463,2670.8,2670.7,50.07927649]
[1724406665276,13.64677463,2670.8,2670.7,50.017159]
[1724406665721,13.64677463,2670.8,2670.7,50.07936095]
[1724406666221,9.90258463,2670.8,2670.7,50.07936095]
[1724406667678,4.91780694,2670.8,2670.7,50.07936095]
[1724406668274,8.66199694,2670.8,2670.7,50.07936095]
[1724406668802,12.40618694,2670.8,2670.7,50.07936095]
[1724406669176,8.66199694,2670.8,2670.7,50.07936095]
[1724406669410,2.2671,2670.8,2670.7,50.017159]
[1724406669570,2.2671,2670.8,2670.7,50.07972359]
[1724406670476,6.01129,2670.8,2670.7,50.07972359]
[1724406670801,7.55188769,2670.8,2670.7,50.07972359]
[1724406672600,7.55188769,2670.8,2670.7,50.017159]
[1724406672921,7.55188769,2670.8,2670.7,50.07969875]
[1724406673215,11.37884341,2670.8,2670.7,50.07969875]
[1724406674382,7.55188769,2670.8,2670.7,50.07969875]
[1724406674618,2.2671,2670.8,2670.7,50.07969875]
[1724406675803,6.01129,2670.8,2670.7,50.07969875]
[1724406676347,9.75548,2670.8,2670.7,50.07969875]
[1724406676830,9.75548,2670.8,2670.7,50.017159]
[1724406677332,9.75548,2670.8,2670.7,50.07972359]
[1724406677643,11.67049369,2670.8,2670.7,50.07972359]
[1724406678817,14.67049369,2670.8,2670.7,50.07972359]
[1724406679147,10.92630369,2670.8,2670.7,50.07972359]
[1724406679637,10.92630369,2670.8,2670.7,50.017159]
[1724406679638,5.2671,2670.8,2670.7,50.017159]
[1724406679791,2.2671,2670.8,2670.7,50.017159]
[1724406680133,2.2671,2670.8,2670.7,50.07770978]
[1724406681337,3.0,2670.9,2670.7,50.07770978]
[1724406682332,6.74406,2670.9,2670.7,50.07770978]
[1724406682566,3.0,2670.9,2670.7,50.07770978]
[1724406682692,5.09230694,2671.0,2670.7,50.07770978]
[1724406682894,2.4416,2671.0,2670.7,50.07770978]
[1724406683096,2.4416,2671.0,2670.7,51.55706535]
[1724406683846,2.4718,2671.2,2670.7,51.55706535]
[1724406684624,5.4718,2671.2,2670.7,51.55706535]
[1724406686056,2.4718,2671.2,2670.7,51.55706535]
[1724406686256,2.72849038,2671.5,2670.7,51.55706535]
[1724406686257,5.20029038,2671.5,2670.8,2.56437565]
[1724406686466,2.72849038,2671.5,2670.9,3.74146478]
[1724406686760,6.39379694,2671.6,2670.9,3.74146478]
[1724406686936,6.39379694,2671.6,2671.0,0.06012145]
[1724406687298,10.13695694,2671.6,2671.0,0.68923007]
[1724406687504,6.39379694,2671.6,2671.0,0.68923007]
[1724406687723,6.74288,2671.8,2671.1,2.4985]
[1724406687952,3.74288,2671.8,2671.1,2.4985]
[1724406688130,3.74288,2671.8,2671.2,0.05996828]
[1724406688331,2.65070694,2671.9,2671.2,0.38621276]
[1724406689538,6.39300694,2672.2,2671.3,2.4985]
[1724406689743,3.0,2672.1,2671.3,2.4985]
[1724406689964,3.74253,2672.0,2671.4,0.05982009]
[1724406690677,3.0,2672.1,2671.4,0.05982009]
[1724406690845,3.0,2672.1,2671.5,0.25583201]
[1724406691163,3.0,2672.1,2671.6,0.05967192]
[1724406692074,2.65070694,2672.2,2671.6,0.05967192]
[1724406692256,6.12272,2672.3,2671.6,0.05967192]
[1724406692571,6.74224,2672.2,2671.6,0.05967192]
[1724406692744,8.028736,2672.2,2671.6,0.05967192]
[1724406693074,6.74224,2672.2,2671.6,0.05967192]
[1724406693444,9.39294694,2672.2,2671.6,0.05967192]
[1724406693640,5.65070694,2672.2,2671.6,0.05967192]
[1724406693855,3.7424,2672.1,2671.6,0.05967192]
[1724406695659,3.74253,2672.0,2671.6,0.05967192]
[1724406695965,3.74253,2672.0,2670.9,5.2886]
[1724406695966,6.17098,2671.8,2670.9,5.2886]
[1724406696167,9.91386,2671.8,2670.9,2.2886]
[1724406696377,9.91386,2671.8,2671.0,0.05922391]
[1724406696526,3.74298,2671.7,2671.1,0.23478239]
[1724406696731,3.74298,2671.7,2671.2,0.0590757]
[1724406697365,6.17098,2671.8,2671.2,0.0590757]
[1724406697535,6.17098,2671.8,2670.9,2.2886]
[1724406697536,9.91386,2671.8,2670.9,2.2886]
[1724406697741,0.08276572,2671.7,2671.0,0.28800957]
[1724406697942,0.08276572,2671.7,2671.0,0.05914957]
[1724406698374,2.4281,2671.8,2671.0,0.05914957]
[1724406699177,2.65070694,2671.6,2671.0,0.05914957]
[1724406699376,2.65070694,2671.6,2670.8,2.4584]
[1724406699683,2.65070694,2671.6,2670.9,0.30677958]
[1724406702185,3.74261,2672.0,2671.0,2.3651]
[1724406702186,2.65070694,2671.9,2671.0,2.3651]
[1724406702343,2.65070694,2671.9,2671.1,0.05907546]
[1724406703784,9.39303694,2672.2,2671.2,2.4838]
[1724406704085,5.65070694,2672.2,2671.3,0.68765916]
[1724406704642,2.65070694,2671.4,2671.3,0.05900161]
[1724406704883,2.65070694,2671.5,2671.3,0.05900161]
[1724406705040,2.65070694,2671.5,2670.9,2.4275]
[1724406705470,2.65070694,2671.5,2671.0,0.05161925]
[1724406705679,2.65070694,2671.5,2671.0,0.29953118]
[1724406706500,2.65070694,2671.8,2671.0,0.29953118]
[1724406706789,4.97450694,2671.8,2671.0,0.29953118]
[1724406707088,4.97450694,2671.8,2671.1,2.3283]
[1724406707089,2.65070694,2671.8,2671.1,2.3283]
[1724406707446,2.65070694,2671.8,2671.2,0.05154529]
[1724406709593,2.65070694,2671.8,2671.2,0.31432101]
[1724406709889,5.03160694,2672.1,2671.2,0.31432101]
[1724406710191,3.0,2672.0,2671.2,0.31432101]
[1724406711705,6.74252,2672.0,2671.2,0.31432101]
[1724406711941,6.74252,2672.0,2671.3,3.74146478]
[1724406712105,10.48512,2672.0,2671.3,3.74146478]
[1724406712446,3.74265,2671.9,2671.4,0.0513575]
[1724406712605,2.65070694,2671.8,2671.4,0.0513575]
[1724406712935,2.3541,2671.6,2671.1,50.0]
[1724406713148,6.0973,2671.6,2671.5,0.05128341]
[1724406713311,8.74800694,2671.6,2671.1,50.0]
[1724406713790,8.74800694,2671.6,2671.2,0.05150569]
[1724406714193,5.00480694,2671.6,2671.2,0.05150569]
[1724406714409,2.65070694,2671.6,2671.2,3.79297047]
[1724406716039,2.65070694,2671.6,2671.2,6.07507047]
[1724406716539,8.74752694,2671.9,2671.2,6.07507047]
[1724406718341,2.489,2671.7,2671.2,3.79297047]
[1724406718524,2.489,2671.7,2671.2,0.05150569]
[1724406718525,6.23195,2671.7,2671.2,0.05150569]
[1724406718727,2.65070694,2671.6,2671.2,0.05150569]
[1724406720040,2.489,2671.7,2671.2,0.05150569]
[1724406720210,10.13616694,2671.9,2671.2,0.05150569]
[1724406720211,8.84202694,2671.9,2671.2,0.05150569]
[1724406720542,8.84202694,2671.9,2671.3,3.74146478]
[1724406720894,8.84202694,2671.9,2671.4,0.05143171]
[1724406721195,3.0,2672.0,2671.4,2.49203171]
[1724406723360,6.02266,2672.1,2671.4,2.49203171]
[1724406723561,6.02266,2672.1,2671.5,0.62334965]
[1724406723766,2.65070694,2672.2,2671.5,0.62334965]
[1724406723767,6.39295694,2672.2,2671.5,0.62334965]
[1724406723951,2.65070694,2672.2,2671.6,0.05121425]
[1724406724733,6.39295694,2672.2,2671.6,0.05121425]
[1724406725558,2.347,2671.9,2671.6,0.05121425]
[1724406725807,4.99770694,2671.9,2671.6,0.05121425]
[1724406726003,4.99770694,2671.9,2671.3,3.74146478]
[1724406726173,8.74038694,2671.9,2671.7,0.05112533]
[1724406726374,12.48311694,2671.9,2671.1,52.4711]
[1724406726574,12.48311694,2671.9,2671.8,0.05091762]
[1724406726575,8.74038694,2671.9,2671.8,0.05091762]
[1724406726795,8.74038694,2671.9,2671.1,52.4711]
[1724406727316,8.74038694,2671.9,2671.2,0.05136213]
[1724406727524,8.74038694,2671.9,2671.3,3.74146478]
[1724406727881,8.74038694,2671.9,2671.4,0.05120899]
[1724406729525,12.48312694,2671.9,2671.4,0.05120899]
[1724406729822,8.74038694,2671.9,2671.4,0.05120899]
[1724406730921,4.99770694,2671.9,2671.4,0.05120899]
[1724406731135,4.99770694,2671.9,2671.4,0.43047637]
[1724406732209,2.65070694,2671.9,2671.4,0.43047637]
[1724406732416,2.3283,2672.1,2671.4,0.43047637]
[1724406732417,5.06455083,2672.1,2671.4,0.43047637]
[1724406732731,5.06455083,2672.1,2671.5,2.4027]
[1724406733139,5.06455083,2672.1,2671.6,0.05106082]
[1724406734025,9.12918777,2672.2,2671.6,0.05106082]
[1724406734337,9.12918777,2672.2,2671.7,0.24537608]
[1724406734936,9.1309006,2672.2,2671.8,0.05091268]
[1724406735298,9.1309006,2672.2,2671.7,0.24537608]
[1724406735494,9.1309006,2672.2,2671.9,0.05083861]
[1724406735715,9.1309006,2672.2,2671.5,2.4027]
[1724406735925,9.1309006,2672.2,2672.0,0.05076455]
[1724406736399,9.1309006,2672.2,2671.5,2.4027]
[1724406736824,9.1309006,2672.2,2671.6,0.05106082]
[1724406737722,12.8732106,2672.2,2671.6,0.05106082]
[1724406737917,9.1309006,2672.2,2671.6,0.05106082]
[1724406738348,9.1309006,2672.2,2671.6,1.07536364]
[1724406739464,12.8732106,2672.2,2671.6,1.07536364]
[1724406739971,9.1309006,2672.2,2671.6,1.07536364]
[1724406740500,12.8732106,2672.2,2671.6,1.07536364]
[1724406740763,9.1309006,2672.2,2671.6,1.07536364]
[1724406742078,12.8732206,2672.2,2671.6,1.07536364]
[1724406742364,9.1309006,2672.2,2671.6,1.07536364]
[1724406742554,12.8732206,2672.2,2671.6,1.07536364]
[1724406742752,9.1309006,2672.2,2671.6,0.05106082]
[1724406743571,12.8732506,2672.2,2671.6,0.05106082]